lending/lending_fUSD_20250224
["ID","MTS","AMOUNT","RATE_DAILY","PERIOD"]
[354292654,1740395436374,-500.0,0.00020502,3]
[354292656,1740395436383,-507.56993675,0.00020502,3]
[354292658,1740395436392,-500.0,0.00020502,3]
[354292660,1740395436401,-498.36481042,0.00020502,3]
[354292662,1740395436410,-513.46566462,0.00020502,3]
[354292664,1740395436420,-500.0,0.00020502,3]
[354292666,1740395436429,-500.0,0.00020502,3]
[354292668,1740395436439,-506.0900091,0.00020502,3]
[354292670,1740395436448,-464.18382186,0.00020502,3]
[354292672,1740395436458,-500.0,0.00020502,3]
[354292674,1740395436467,-500.0,0.00020502,3]
[354292676,1740395436476,-506.46381038,0.00020502,3]
[354292678,1740395436485,-505.74261589,0.00020502,3]
[354292680,1740395436494,-500.0,0.00020502,3]
[354292682,1740395436503,-500.0,0.00020502,3]
[354292684,1740395436512,-500.87552286,0.00020502,3]
[354292686,1740395436521,-500.0,0.00020502,3]
[354292688,1740395436530,-507.43696636,0.00020502,3]
[354292690,1740395436540,-500.0,0.00020502,3]
[354292692,1740395436549,-500.0,0.00020502,3]
[354292694,1740395436559,-507.74330737,0.00020502,3]
[354292697,1740395436568,-500.0,0.00020502,3]
[354292698,1740395436577,-501.3303505,0.00020502,3]
[354292700,1740395436586,-500.0,0.00020502,3]
[354292702,1740395436595,-500.0,0.00020502,3]
[354292704,1740395436604,-500.0,0.00020502,3]
[354292706,1740395436613,-507.73505819,0.00020502,3]
[354292708,1740395436622,-500.0,0.00020502,3]
[354292710,1740395436636,-507.15536021,0.00020502,3]
[354292712,1740395436645,-500.0,0.00020502,3]
[354292714,1740395436653,-502.70869344,0.00020502,3]
[354292716,1740395436662,-511.49779298,0.00020502,3]
[354292718,1740395436673,-500.0,0.00020502,3]
[354292720,1740395436682,-500.78447822,0.00020502,3]
[354292722,1740395436691,-508.6535871,0.00020502,3]
[354292724,1740395436700,-510.1563404,0.00020502,3]
[354292726,1740395436711,-502.80541607,0.00020502,3]
[354292728,1740395436720,-503.28762673,0.00020502,3]
[354292730,1740395436729,-506.2141299,0.00020502,3]
[354292732,1740395436738,-511.59814837,0.00020502,3]
[354292734,1740395436748,-500.83789543,0.00020502,3]
[354292736,1740395436757,-500.0,0.00020502,3]
[354292738,1740395436766,-503.01411335,0.00020502,3]
[354292740,1740395436775,-500.0,0.00020502,3]
[354292742,1740395436784,-507.75795042,0.00020502,3]
[354292744,1740395436794,-500.0,0.00020502,3]
[354292746,1740395436804,-500.0,0.00020502,3]
[354292748,1740395436813,-500.0,0.00020502,3]
[354292750,1740395436823,-326.3527584,0.00020502,3]
[354292752,1740395436833,-507.93608563,0.00020502,3]
[354292754,1740395436842,-498.4790424,0.00020502,3]
[354292756,1740395436851,-500.0,0.00020502,3]
[354292758,1740395436861,-511.98817717,0.00020502,3]
[354292761,1740395436872,-501.94827066,0.00020502,3]
[354292763,1740395436881,-500.0,0.00020502,3]
[354292764,1740395436890,-501.03743236,0.00020502,3]
[354292766,1740395436899,-502.16209435,0.00020502,3]
[354292768,1740395436909,-501.69723474,0.00020502,3]
[354292770,1740395436918,-500.0,0.00020502,3]
[354292773,1740395436927,-503.29403165,0.00020502,3]
[354292774,1740395436934,-500.0,0.00020502,3]
[354292776,1740395436943,-503.52053286,0.00020502,3]
[354292779,1740395436954,-500.0,0.00020502,3]
[354292781,1740395436963,-507.04780862,0.00020502,3]
[354292783,1740395436973,-514.06,0.00020502,3]
[354292785,1740395436982,-245.63359057,0.00020502,3]
[354292786,1740395436990,-500.0,0.00020502,3]
[354292788,1740395436999,-579.74534379,0.00020502,3]
[354292790,1740395437009,-504.5987994,0.00020502,3]
[354292792,1740395437018,-502.7603808,0.00020502,3]
[354292794,1740395437027,-500.0,0.00020502,3]
[354292797,1740395437036,-500.0,0.00020502,3]
[354292799,1740395437045,-500.0,0.00020502,3]
[354292800,1740395437056,-504.41454881,0.00020502,3]
[354292803,1740395437065,-500.0,0.00020502,3]
[354292804,1740395437074,-172.06606314,0.00020502,3]
[354292806,1740395437083,-500.0,0.00020502,3]
[354292808,1740395437092,-500.0,0.00020502,3]
[354292810,1740395437100,-503.11358284,0.00020502,3]
[354292812,1740395437109,-500.0,0.00020502,3]
[354292813,1740395437118,-500.0,0.00020502,3]
[354292814,1740395437126,-503.12432551,0.00020502,3]
[354292815,1740395437135,-500.0,0.00020502,3]
[354292816,1740395437144,-500.0,0.00020502,3]
[354292817,1740395437153,-500.0,0.00020502,3]
[354292818,1740395437162,-503.28200421,0.00020502,3]
[354292819,1740395437171,-504.40127982,0.00020502,3]
[354292820,1740395437180,-508.66515681,0.00020502,3]
[354292821,1740395437188,-500.0,0.00020502,3]
[354292822,1740395437198,-500.0,0.00020502,3]
[354292823,1740395437206,-502.48109142,0.00020502,3]
[354292825,1740395437215,-500.0,0.00020502,3]
[354292827,1740395437224,-500.0,0.00020502,3]
[354292829,1740395437232,-507.09854941,0.00020502,3]
[354292831,1740395437241,-532.35,0.00020502,3]
[354292833,1740395437250,-500.0,0.00020502,3]
[354292835,1740395437259,-500.0,0.00020502,3]
[354292837,1740395437268,-503.15964518,0.00020502,3]
[354292838,1740395437277,-502.66282773,0.00020502,3]
[354292839,1740395437285,-500.0,0.00020502,3]
[354292840,1740395437294,-500.0,0.00020502,3]
[354292841,1740395437302,-500.0,0.00020502,3]
[354292842,1740395437311,-500.0,0.00020502,3]
[354292843,1740395437319,-498.31476857,0.00020502,3]
[354292844,1740395437328,-500.0,0.00020502,3]
[354292845,1740395437338,-500.0,0.00020502,3]
[354292846,1740395437347,-506.79138279,0.00020502,3]
[354292847,1740395437356,-500.0,0.00020502,3]
[354292848,1740395437365,-399.8527621,0.00020502,3]
[354292849,1740395437373,-507.79918973,0.00020502,3]
[354292850,1740395437382,-500.0,0.00020502,3]
[354292851,1740395437391,-500.0,0.00020502,3]
[354292852,1740395437399,-500.0,0.00020502,3]
[354292853,1740395437409,-506.62022338,0.00020502,3]
[354292854,1740395437419,-500.0,0.00020502,3]
[354292855,1740395437428,-500.0,0.00020502,3]
[354292856,1740395437437,-500.0,0.00020502,3]
[354292857,1740395437446,-500.0,0.00020502,3]
[354292858,1740395437456,-500.0,0.00020502,3]
[354292859,1740395437467,-500.0,0.00020502,3]
[354292860,1740395437476,-500.0,0.00020502,3]
[354292861,1740395437486,-500.0,0.00020502,3]
[354292862,1740395437495,-505.01963286,0.00020502,3]
[354292863,1740395437505,-525.35317248,0.00020502,3]
[354292864,1740395437513,-507.0650411,0.00020502,3]
[354292865,1740395437523,-505.36887644,0.00020502,3]
[354292867,1740395437532,-450.0,0.00020502,3]
[354292869,1740395437543,-500.0,0.00020502,3]
[354292871,1740395437552,-500.0,0.00020502,3]
[354292873,1740395437562,-503.42232476,0.00020502,3]
[354292875,1740395437571,-500.0,0.00020502,3]
[354292877,1740395437580,-500.0,0.00020502,3]
[354292880,1740395437589,-521.89850993,0.00020502,3]
[354292883,1740395437599,-505.70181007,0.00020502,3]
[354292885,1740395437608,-500.0,0.00020502,3]
[354292886,1740395437617,-500.0,0.00020502,3]
[354292887,1740395437628,-502.30971045,0.00020502,3]
[354292888,1740395437638,-503.72856126,0.00020502,3]
[354292889,1740395437648,-500.0,0.00020502,3]
[354292890,1740395437657,-500.0,0.00020502,3]
[354292891,1740395437667,-500.0,0.00020502,3]
[354292892,1740395437677,-511.05379224,0.00020502,3]
[354292893,1740395437686,-518.01895347,0.00020502,3]
[354292894,1740395437695,-500.02038116,0.00020502,3]
[354292895,1740395437705,-500.0,0.00020502,3]
[354292896,1740395437715,-500.0,0.00020502,3]
[354292897,1740395437724,-503.74329977,0.00020502,3]
[354292898,1740395437733,-500.91388849,0.00020502,3]
[354292899,1740395437742,-500.0,0.00020502,3]
[354292900,1740395437751,-500.0,0.00020502,3]
[354292901,1740395437760,-500.0,0.00020502,3]
[354292902,1740395437769,-500.0,0.00020502,3]
[354292903,1740395437778,-501.04328219,0.00020502,3]
[354292904,1740395437787,-500.0,0.00020502,3]
[354292905,1740395437797,-383.69713563,0.00020502,3]
[354292906,1740395437806,-450.0,0.00020502,3]
[354292907,1740395437815,-506.57699015,0.00020502,3]
[354292908,1740395437824,-500.0,0.00020502,3]
[354292909,1740395437834,-501.92936234,0.00020502,3]
[354292910,1740395437842,-500.0,0.00020502,3]
[354292911,1740395437852,-544.91973153,0.00020502,3]
[354292912,1740395437861,-498.42590523,0.00020502,3]
[354292913,1740395437870,-500.0,0.00020502,3]
[354292914,1740395437879,-498.30885617,0.00020502,3]
[354292915,1740395437888,-500.0,0.00020502,3]
[354292916,1740395437897,-503.16482404,0.00020502,3]
[354292917,1740395437907,-504.32607023,0.00020502,3]
[354292918,1740395437916,-504.89656931,0.00020502,3]
[354292919,1740395437925,-500.0,0.00020502,3]
[354292920,1740395437935,-505.91759969,0.00020502,3]
[354292921,1740395437944,-503.70491143,0.00020502,3]
[354292922,1740395437953,-500.0,0.00020502,3]
[354292923,1740395437961,-500.0,0.00020502,3]
[354292924,1740395437970,-500.0,0.00020502,3]
[354292925,1740395437979,-500.79420776,0.00020502,3]
[354292926,1740395437988,-500.0,0.00020502,3]
[354292927,1740395437997,-500.0,0.00020502,3]
[354292928,1740395438006,-501.13536333,0.00020502,3]
[354292929,1740395438015,-500.0,0.00020502,3]
[354292930,1740395438024,-501.69404315,0.00020502,3]
[354292931,1740395438032,-500.0,0.00020502,3]
[354292932,1740395438042,-500.0,0.00020502,3]
[354292933,1740395438051,-500.0,0.00020502,3]
[354292934,1740395438060,-504.01824709,0.00020502,3]
[354292935,1740395438069,-498.45125759,0.00020502,3]
[354292937,1740395438078,-478.55456468,0.00020502,3]
[354292939,1740395438087,-500.0,0.00020502,3]
[354292941,1740395438096,-501.18226226,0.00020502,3]
[354292944,1740395438105,-506.13371444,0.00020502,3]
[354292947,1740395438114,-500.0,0.00020502,3]
[354292950,1740395438123,-504.53779247,0.00020502,3]
[354292953,1740395438133,-503.84336033,0.00020502,3]
[354292956,1740395438142,-526.39289842,0.00020502,3]
[354292973,1740395438288,-505.92400504,0.00020502,3]
[354292975,1740395438298,-501.3009823,0.00020502,3]
[354292977,1740395438307,-503.79475823,0.00020502,3]
[354292979,1740395438316,-505.48802084,0.00020502,3]
[354292981,1740395438325,-500.0,0.00020502,3]
[354292983,1740395438335,-501.72512086,0.00020502,3]
[354292985,1740395438344,-500.0,0.00020502,3]
[354292987,1740395438354,-500.0,0.00020502,3]
[354292989,1740395438363,-505.86212423,0.00020502,3]
[354292991,1740395438372,-437.33607701,0.00020502,3]
[354292994,1740395438382,-505.46880407,0.00020502,3]
[354292995,1740395438391,-500.0,0.00020502,3]
[354292997,1740395438400,-603.27655712,0.00020502,3]
[354292999,1740395438410,-506.53481192,0.00020502,3]
[354293002,1740395438419,-500.0,0.00020502,2]
[354293003,1740395438428,-500.0,0.00020502,2]
[354293006,1740395438437,-500.0,0.00020502,2]
[354293008,1740395438446,-500.0,0.00020502,2]
[354293010,1740395438457,-500.0,0.00020502,2]
[354293012,1740395438466,-500.0,0.00020502,2]
[354293014,1740395438475,-500.0,0.00020502,2]
[354293016,1740395438484,-500.0,0.00020502,3]
[354293018,1740395438493,-500.0,0.00020502,2]
[354293020,1740395438502,-498.52409941,0.00020502,3]
[354293021,1740395438511,-505.15150144,0.00020502,2]
[354293024,1740395438521,-500.0,0.00020502,3]
[354293025,1740395438530,-498.49931492,0.00020502,3]
[354293027,1740395438539,-504.74767686,0.00020502,3]
[354293029,1740395438549,-517.61232976,0.00020502,3]
[354293031,1740395438558,-500.0,0.00020502,3]
[354293033,1740395438568,-503.88787084,0.00020502,3]
[354293035,1740395438577,-502.59172889,0.00020502,3]
[354293037,1740395438586,-500.0,0.00020502,7]
[354293039,1740395438595,-507.44594165,0.00020502,3]
[354293041,1740395438604,-505.98945521,0.00020502,3]
[354293043,1740395438613,-508.63635075,0.00020502,3]
[354293045,1740395438623,-500.0,0.00020502,3]
[354293047,1740395438634,-500.00010241,0.00020502,3]
[354293049,1740395438643,-508.05974625,0.00020502,3]
[354293051,1740395438652,-505.74474751,0.00020502,3]
[354293053,1740395438661,-504.44858007,0.00020502,3]
[354293055,1740395438670,-503.1246317,0.00020502,3]
[354293057,1740395438680,-500.0,0.00020502,3]
[354293059,1740395438689,-502.85602183,0.00020502,3]
[354293061,1740395438698,-501.12751027,0.00020502,3]
[354293063,1740395438707,-504.34678655,0.00020502,3]
[354293065,1740395438717,-500.0,0.00020502,3]
[354293067,1740395438726,-500.0,0.00020502,3]
[354293069,1740395438735,-500.0,0.00020502,3]
[354293071,1740395438744,-502.05057106,0.00020502,3]
[354293074,1740395438753,-500.0,0.00020502,3]
[354293076,1740395438763,-506.1338945,0.00020502,3]
[354293078,1740395438772,-505.2392481,0.00020502,3]
[354293080,1740395438781,-504.86473755,0.00020502,3]
[354293082,1740395438790,-505.1702386,0.00020502,3]
[354293083,1740395438799,-508.94481354,0.00020502,3]
[354293085,1740395438809,-500.0,0.00020502,3]
[354293087,1740395438819,-502.3517227,0.00020502,3]
[354293089,1740395438830,-501.97788007,0.00020502,3]
[354293091,1740395438839,-500.0,0.00020502,3]
[354293093,1740395438848,-504.86945402,0.00020502,3]
[354293095,1740395438857,-500.0,0.00020502,3]
[354293097,1740395438866,-500.0,0.00020502,3]
[354293098,1740395438875,-506.03467688,0.00020502,3]
[354293099,1740395438884,-504.55384589,0.00020502,3]
[354293100,1740395438893,-500.0,0.00020502,3]
[354293101,1740395438902,-500.0,0.00020502,3]
[354293102,1740395438912,-504.65650449,0.00020502,3]
[354293103,1740395438921,-500.0,0.00020502,3]
[354293104,1740395438930,-503.16870738,0.00020502,3]
[354293105,1740395438939,-500.0,0.00020502,3]
[354293106,1740395438948,-512.93745721,0.00020502,3]
[354293107,1740395438957,-500.0,0.00020502,3]
[354293108,1740395438966,-509.56773809,0.00020502,3]
[354293109,1740395438975,-500.0,0.00020502,3]
[354293110,1740395438984,-535.61307096,0.00020502,3]
[354293111,1740395438994,-500.0,0.00020502,3]
[354293112,1740395439003,-506.78073547,0.00020502,3]
[354293113,1740395439012,-515.42195733,0.00020502,3]
[354293114,1740395439022,-509.51909295,0.00020502,3]
[354293115,1740395439031,-502.17356214,0.00020502,3]
[354293116,1740395439040,-500.0,0.00020502,2]
[354293117,1740395439049,-505.86036711,0.00020502,3]
[354293118,1740395439058,-500.0,0.00020502,3]
[354293119,1740395439067,-504.6982273,0.00020502,3]
[354293120,1740395439077,-514.08019761,0.00020502,3]
[354293121,1740395439086,-505.04471482,0.00020502,3]
[354293122,1740395439095,-498.06611924,0.00020502,3]
[354293123,1740395439104,-505.60194188,0.00020502,3]
[354293124,1740395439113,-500.0,0.00020502,3]
[354293125,1740395439122,-505.62350174,0.00020502,3]
[354293126,1740395439131,-500.0,0.00020502,3]
[354293127,1740395439140,-503.93196865,0.00020502,3]
[354293128,1740395439150,-543.03688606,0.00020502,3]
[354293129,1740395439159,-500.0,0.00020502,3]
[354293130,1740395439168,-514.18138723,0.00020502,3]
[354293131,1740395439177,-503.33450665,0.00020502,3]
[354293132,1740395439186,-500.0,0.00020502,3]
[354293133,1740395439195,-500.0,0.00020502,3]
[354293134,1740395439204,-500.0,0.00020502,3]
[354293135,1740395439214,-500.0,0.00020502,3]
[354293136,1740395439223,-505.22713996,0.00020502,3]
[354293137,1740395439232,-503.03477642,0.00020502,3]
[354293138,1740395439241,-503.8944179,0.00020502,3]
[354293139,1740395439250,-500.0,0.00020502,3]
[354293140,1740395439260,-502.31095044,0.00020502,3]
[354293141,1740395439269,-500.0,0.00020502,3]
[354293142,1740395439278,-500.0,0.00020502,3]
[354293143,1740395439287,-501.36634825,0.00020502,3]
[354293144,1740395439297,-500.0,0.00020502,3]
[354293145,1740395439306,-520.53153261,0.00020502,3]
[354293146,1740395439316,-363.16658001,0.00020502,3]
[354293147,1740395439325,-503.63234082,0.00020502,3]
[354293148,1740395439334,-504.92081673,0.00020502,3]
[354293149,1740395439344,-504.76764873,0.00020502,3]
[354293150,1740395439354,-500.0,0.00020502,3]
[354293151,1740395439363,-481.1710842,0.00020502,3]
[354293152,1740395439372,-503.8467261,0.00020502,3]
[354293153,1740395439382,-510.9396677,0.00020502,3]
[354293154,1740395439391,-528.29925454,0.00020502,3]
[354293155,1740395439400,-500.0,0.00020502,3]
[354293156,1740395439409,-491.05521409,0.00020502,3]
[354293157,1740395439419,-504.8875627,0.00020502,3]
[354293158,1740395439428,-506.54633581,0.00020502,3]
[354293159,1740395439437,-502.20056521,0.00020502,3]
[354293160,1740395439446,-500.0,0.00020502,3]
[354293161,1740395439455,-622.19659111,0.00020502,3]
[354293162,1740395439465,-500.0,0.00020502,3]
[354293163,1740395439474,-502.09844843,0.00020502,3]
[354293164,1740395439483,-505.42310346,0.00020502,3]
[354293165,1740395439492,-503.18634511,0.00020502,3]
[354293166,1740395439501,-500.0,0.00020502,3]
[354293167,1740395439510,-505.95417652,0.00020502,3]
[354293168,1740395439519,-502.65361121,0.00020502,3]
[354293169,1740395439528,-500.0,0.00020502,3]
[354293170,1740395439537,-500.0,0.00020502,3]
[354293171,1740395439547,-500.0,0.00020502,3]
[354293172,1740395439557,-500.0,0.00020502,3]
[354293173,1740395439566,-500.0,0.00020502,3]
[354293174,1740395439575,-504.04584581,0.00020502,3]
[354293175,1740395439584,-507.7588775,0.00020502,3]
[354293176,1740395439593,-500.0,0.00020502,3]
[354293177,1740395439602,-500.0,0.00020502,3]
[354293178,1740395439611,-500.0,0.00020502,3]
[354293179,1740395439620,-500.0,0.00020502,3]
[354293181,1740395439631,-500.0,0.00020502,3]
[354293182,1740395439640,-500.0,0.00020502,3]
[354293183,1740395439650,-500.0,0.00020502,3]
[354293184,1740395439659,-551.76550867,0.00020502,3]
[354293186,1740395439669,-510.75466856,0.00020502,3]
[354293188,1740395439679,-500.0,0.00020502,3]
[354293190,1740395439689,-500.0,0.00020502,3]
[354293192,1740395439698,-502.47968688,0.00020502,3]
[354293193,1740395439708,-500.0,0.00020502,3]
[354293194,1740395439718,-502.63235129,0.00020502,3]
[354293195,1740395439727,-504.31929416,0.00020502,3]
[354293196,1740395439737,-503.03719587,0.00020502,3]
[354293197,1740395439746,-503.11034389,0.00020502,3]
[354293198,1740395439755,-500.0,0.00020502,3]
[354293199,1740395439765,-501.30712336,0.00020502,3]
[354293200,1740395439774,-500.0,0.00020502,3]
[354293201,1740395439783,-500.0,0.00020502,3]
[354293202,1740395439794,-500.0,0.00020502,3]
[354293203,1740395439803,-503.54817835,0.00020502,3]
[354293204,1740395439812,-502.45588604,0.00020502,3]
[354293205,1740395439821,-505.37643348,0.00020502,3]
[354293206,1740395439831,-501.59108993,0.00020502,3]
[354293207,1740395439840,-500.0,0.00020502,3]
[354293208,1740395439849,-510.61038388,0.00020502,3]
[354293209,1740395439859,-502.72051095,0.00020502,3]
[354293210,1740395439868,-500.0,0.00020502,3]
[354293211,1740395439877,-504.02206682,0.00020502,3]
[354293212,1740395439887,-170.18932623,0.00020502,3]
[354293213,1740395439896,-500.0,0.00020502,3]
[354293214,1740395439906,-613.0609458,0.00020502,3]
[354293215,1740395439915,-500.0,0.00020502,3]
[354293216,1740395439924,-500.0,0.00020502,3]
[354293217,1740395439933,-500.0,0.00020502,3]
[354293218,1740395439942,-503.77680682,0.00020502,3]
[354293219,1740395439952,-506.71278006,0.00020502,3]
[354293220,1740395439961,-500.0,0.00020502,3]
[354293221,1740395439971,-509.5030006,0.00020502,3]
[354293222,1740395439980,-500.0,0.00020502,3]
[354293223,1740395439990,-501.14853002,0.00020502,3]
[354293224,1740395439999,-518.2695786,0.00020502,3]
[354293225,1740395440009,-500.0,0.00020502,3]
[354293226,1740395440018,-500.0,0.00020502,3]
[354293227,1740395440027,-502.87927712,0.00020502,3]
[354293228,1740395440037,-593.29558214,0.00020502,3]
[354293229,1740395440046,-504.07878589,0.00020502,3]
[354293230,1740395440055,-503.66585218,0.00020502,3]
[354293231,1740395440065,-504.78511715,0.00020502,3]
[354293232,1740395440074,-500.0,0.00020502,3]
[354293233,1740395440083,-500.0,0.00020502,3]
[354293234,1740395440091,-500.0,0.00020502,3]
[354293235,1740395440100,-500.0,0.00020502,3]
[354293236,1740395440110,-501.79766332,0.00020502,3]
[354293237,1740395440119,-500.0,0.00020502,3]
[354293238,1740395440127,-500.0,0.00020502,3]
[354293239,1740395440136,-501.36011128,0.00020502,3]
[354293240,1740395440145,-500.0,0.00020502,3]
[354293241,1740395440154,-502.80465437,0.00020502,3]
[354293242,1740395440163,-500.0,0.00020502,3]
[354293243,1740395440173,-421.30219565,0.00020502,3]
[354293244,1740395440182,-500.0,0.00020502,3]
[354293245,1740395440190,-500.0,0.00020502,3]
[354293246,1740395440199,-159.21392179,0.00020502,3]
[354293247,1740395440208,-502.92538668,0.00020502,3]
[354293248,1740395440217,-500.0,0.00020502,3]
[354293249,1740395440226,-500.0,0.00020502,3]
[354293250,1740395440235,-500.0,0.00020502,3]
[354293251,1740395440244,-500.0,0.00020502,3]
[354293252,1740395440253,-500.0,0.00020502,3]
[354293253,1740395440262,-509.70940518,0.00020502,3]
[354293254,1740395440271,-500.0,0.00020502,3]
[354293255,1740395440280,-506.43836938,0.00020502,3]
[354293256,1740395440289,-509.90389559,0.00020502,3]
[354293257,1740395440298,-506.29584446,0.00020502,3]
[354293258,1740395440307,-500.0,0.00020502,3]
[354293259,1740395440317,-504.07273016,0.00020502,3]
[354293260,1740395440326,-500.0,0.00020502,3]
[354293261,1740395440335,-500.0,0.00020502,3]
[354293262,1740395440344,-504.39060384,0.00020502,3]
[354293263,1740395440354,-525.69310654,0.00020502,3]
[354293264,1740395440363,-504.17132136,0.00020502,3]
[354293265,1740395440372,-500.0,0.00020502,3]
[354293266,1740395440381,-500.0,0.00020502,3]
[354293267,1740395440390,-500.0,0.00020502,3]
[354293268,1740395440399,-500.0,0.00020502,3]
[354293269,1740395440408,-500.0,0.00020502,3]
[354293270,1740395440417,-500.0,0.00020502,3]
[354293271,1740395440426,-500.0,0.00020502,3]
[354293272,1740395440435,-500.0,0.00020502,3]
[354293273,1740395440444,-500.0,0.00020502,3]
[354293274,1740395440453,-500.0,0.00020502,3]
[354293275,1740395440462,-500.0,0.00020502,3]
[354293276,1740395440471,-500.0,0.00020502,3]
[354293277,1740395440480,-505.79433055,0.00020502,3]
[354293278,1740395440490,-505.05148191,0.00020502,3]
[354293279,1740395440499,-504.39751088,0.00020502,3]
[354293280,1740395440508,-502.32008822,0.00020502,3]
[354293281,1740395440517,-504.28522176,0.00020502,3]
[354293282,1740395440526,-217.53563366,0.00020502,3]
[354293283,1740395440535,-500.0,0.00020502,3]
[354293284,1740395440545,-504.34912371,0.00020502,3]
[354293285,1740395440586,-500.18060146,0.00020502,3]
[354293286,1740395440595,-500.0,0.00020502,3]
[354293287,1740395440604,-500.0,0.00020502,3]
[354293288,1740395440613,-500.0,0.00020502,3]
[354293289,1740395440623,-508.3138917,0.00020502,3]
[354293290,1740395440635,-479.47772661,0.00020502,3]
[354293291,1740395440645,-502.57355378,0.00020502,3]
[354293292,1740395440654,-500.0,0.00020502,3]
[354293293,1740395440662,-500.0,0.00020502,3]
[354293294,1740395440673,-500.0,0.00020502,3]
[354293295,1740395440682,-500.0,0.00020502,3]
[354293296,1740395440691,-503.71383584,0.00020502,3]
[354293297,1740395440700,-500.0,0.00020502,3]
[354293298,1740395440711,-509.57198995,0.00020502,3]
[354293299,1740395440720,-501.57356744,0.00020502,3]
[354293300,1740395440728,-500.0,0.00020502,3]
[354293301,1740395440737,-500.0,0.00020502,3]
[354293302,1740395440747,-502.46229094,0.00020502,3]
[354293303,1740395440755,-501.4540269,0.00020502,3]
[354293304,1740395440764,-500.0,0.00020502,3]
[354293305,1740395440773,-507.3523005,0.00020502,3]
[354293306,1740395440782,-500.0,0.00020502,3]
[354293307,1740395440791,-502.54395182,0.00020502,3]
[354293308,1740395440800,-500.0,0.00020502,3]
[354293309,1740395440809,-500.0,0.00020502,3]
[354293310,1740395440818,-500.0,0.00020502,3]
[354293311,1740395440827,-500.0,0.00020502,3]
[354293312,1740395440836,-500.0,0.00020502,3]
[354293313,1740395440844,-500.0,0.00020502,3]
[354293314,1740395440853,-500.0,0.00020502,3]
[354293315,1740395440862,-500.0,0.00020502,3]
[354293316,1740395440871,-620.49923485,0.00020502,3]
[354293317,1740395440880,-500.0,0.00020502,3]
[354293318,1740395440890,-503.97052333,0.00020502,3]
[354293319,1740395440899,-502.78202812,0.00020502,3]
[354293320,1740395440908,-500.0,0.00020502,3]
[354293321,1740395440917,-505.42704545,0.00020502,3]
[354293322,1740395440926,-500.0,0.00020502,3]
[354293323,1740395440935,-500.0,0.00020502,3]
[354293324,1740395440944,-500.0,0.00020502,3]
[354293325,1740395440953,-500.0,0.00020502,3]
[354293326,1740395440962,-500.0,0.00020502,3]
[354293327,1740395440971,-500.0,0.00020502,3]
[354293328,1740395440980,-500.0,0.00020502,3]
[354293329,1740395440989,-500.0,0.00020502,3]
[354293330,1740395440998,-500.0,0.00020502,3]
[354293331,1740395441007,-500.0,0.00020502,3]
[354293332,1740395441015,-500.0,0.00020502,3]
[354293333,1740395441024,-500.0,0.00020502,3]
[354293334,1740395441033,-500.0,0.00020502,3]
[354293335,1740395441042,-500.0,0.00020502,3]
[354293336,1740395441050,-500.0,0.00020502,3]
[354293337,1740395441059,-502.52990507,0.00020502,3]
[354293338,1740395441068,-500.0,0.00020502,3]
[354293339,1740395441077,-500.0,0.00020502,3]
[354293340,1740395441086,-500.0,0.00020502,3]
[354293341,1740395441095,-500.0,0.00020502,3]
[354293342,1740395441105,-500.0,0.00020502,3]
[354293343,1740395441114,-501.22244584,0.00020502,3]
[354293344,1740395441122,-500.0,0.00020502,3]
[354293345,1740395441131,-500.0,0.00020502,3]
[354293346,1740395441140,-500.0,0.00020502,3]